[Event "*** Titled Tuesday 3|2 Blitz"]
[Site "Chess.com"]
[Date "2016.06.07"]
[Round "4"]
[White "evgenyermolaev"]
[Black "1random"]
[Result "1-0"]
[WhiteElo "2285"]
[BlackElo "2117"]
[TimeControl "180+2"]
[EndTime "17:43:15 PDT"]
[Termination "evgenyermolaev won by resignation"]

1. e4 {[%clk 0:03:01.9]} 1... Nf6 {[%clk 0:02:59.1]} 2. e5 {[%clk 0:03:02.6]}
2... Nd5 {[%clk 0:02:58.5]} 3. d4 {[%clk 0:03:03.7]} 3... d6 {[%clk 0:02:58.6]}
4. Nf3 {[%clk 0:03:04.3]} 4... g6 {[%clk 0:02:59]} 5. Bc4 {[%clk 0:03:02.4]}
5... Nb6 {[%clk 0:02:52.1]} 6. Bb3 {[%clk 0:03:01.9]} 6... Bg7 {[%clk
0:02:48.9]} 7. O-O {[%clk 0:03:02.5]} 7... O-O {[%clk 0:02:49.3]} 8. Nc3 {[%clk
0:02:58.1]} 8... Bg4 {[%clk 0:02:49.8]} 9. exd6 {[%clk 0:02:56.2]} 9... cxd6
{[%clk 0:02:49.3]} 10. h3 {[%clk 0:02:57.3]} 10... Bxf3 {[%clk 0:02:48.9]} 11.
Qxf3 {[%clk 0:02:57.5]} 11... Nc6 {[%clk 0:02:34.1]} 12. d5 {[%clk 0:02:53.3]}
12... Nd4 {[%clk 0:02:15.6]} 13. Qd1 {[%clk 0:02:51.4]} 13... a5 {[%clk
0:02:12.5]} 14. Be3 {[%clk 0:02:50.4]} 14... Nxb3 {[%clk 0:02:03.1]} 15. axb3
{[%clk 0:02:51.1]} 15... Nd7 {[%clk 0:02:04.6]} 16. Bd4 {[%clk 0:02:45.5]} 16...
Nc5 {[%clk 0:01:53.4]} 17. Bxg7 {[%clk 0:02:35.7]} 17... Kxg7 {[%clk 0:01:55.3]}
18. Qd4+ {[%clk 0:02:36.5]} 18... Kg8 {[%clk 0:01:55.1]} 19. Rfe1 {[%clk
0:02:36.9]} 19... Qd7 {[%clk 0:01:55.5]} 20. Na4 {[%clk 0:02:23.2]} 20... Rfc8
{[%clk 0:01:43.6]} 21. Nb6 {[%clk 0:02:23.6]} 21... Qc7 {[%clk 0:01:39.7]} 22.
Nxa8 {[%clk 0:02:20.7]} 22... Rxa8 {[%clk 0:01:40.3]} 23. b4 {[%clk 0:02:21.5]}
23... e5 {[%clk 0:01:41.1]} 24. dxe6 {[%clk 0:02:13]} 24... Nxe6 {[%clk
0:01:41.5]} 25. Qc3 {[%clk 0:02:05.7]} 25... Qd8 {[%clk 0:01:34.3]} 26. Rxa5
{[%clk 0:02:05.4]} 26... Rc8 {[%clk 0:01:26.6]} 27. Qd2 {[%clk 0:02:03.5]} 27...
Qc7 {[%clk 0:01:24.8]} 28. c3 {[%clk 0:02:01.7]} 28... b6 {[%clk 0:01:22.8]} 29.
Rd5 {[%clk 0:02:02]} 1-0

[Event "*** Titled Tuesday 3|2 Blitz"]
[Site "Chess.com"]
[Date "2016.06.07"]
[Round "4"]
[White "AlexanderL"]
[Black "MinhGTrAn"]
[Result "0-1"]
[WhiteElo "2584"]
[BlackElo "2648"]
[TimeControl "180+2"]
[EndTime "17:45:10 PDT"]
[Termination "MinhGTrAn won by resignation"]

1. d4 {[%clk 0:03:01.9]} 1... Nf6 {[%clk 0:03:00.5]} 2. c4 {[%clk 0:03:03.4]}
2... e6 {[%clk 0:03:02.1]} 3. Nc3 {[%clk 0:03:04]} 3... Bb4 {[%clk 0:03:02.9]}
4. Qc2 {[%clk 0:03:05.2]} 4... O-O {[%clk 0:03:03]} 5. Nf3 {[%clk 0:03:05.6]}
5... c5 {[%clk 0:03:02.1]} 6. dxc5 {[%clk 0:03:06.4]} 6... Na6 {[%clk 0:03:03]}
7. g3 {[%clk 0:03:07.6]} 7... Nxc5 {[%clk 0:03:03.8]} 8. Bg2 {[%clk 0:03:09.3]}
8... b6 {[%clk 0:03:04.2]} 9. O-O {[%clk 0:03:10.3]} 9... Bb7 {[%clk 0:03:05.3]}
10. Nb5 {[%clk 0:03:11.9]} 10... Be4 {[%clk 0:03:05.5]} 11. Qd1 {[%clk
0:03:13.2]} 11... Nb7 {[%clk 0:03:07]} 12. a3 {[%clk 0:03:13.2]} 12... Be7
{[%clk 0:03:07.8]} 13. Bf4 {[%clk 0:03:14.6]} 13... d6 {[%clk 0:03:02.8]} 14. b4
{[%clk 0:03:03.1]} 14... a6 {[%clk 0:02:50.7]} 15. Nc3 {[%clk 0:03:03.3]} 15...
Bc6 {[%clk 0:02:52.3]} 16. Qb3 {[%clk 0:03:03.5]} 16... Rc8 {[%clk 0:02:50.4]}
17. Rac1 {[%clk 0:02:53.8]} 17... Qc7 {[%clk 0:02:42.3]} 18. Nd5 {[%clk
0:02:30.6]} 18... exd5 {[%clk 0:02:02.6]} 19. cxd5 {[%clk 0:02:30.5]} 19... Nxd5
{[%clk 0:02:01.9]} 20. Nd4 {[%clk 0:02:31]} 20... Nxf4 {[%clk 0:01:50.7]} 21.
gxf4 {[%clk 0:02:31.9]} 21... Nc5 {[%clk 0:01:35.1]} 22. bxc5 {[%clk 0:01:21.9]}
22... Bxg2 {[%clk 0:01:35.7]} 23. cxd6 {[%clk 0:01:16]} 23... Qxd6 {[%clk
0:01:19.8]} 24. Nf5 {[%clk 0:01:16.9]} 24... Bxf1 {[%clk 0:01:00.4]} 25. Nxd6
{[%clk 0:00:51.5]} 25... Rxc1 {[%clk 0:00:59.6]} 26. Qb2 {[%clk 0:00:37.9]}
26... Rd1 {[%clk 0:01:00.7]} 27. Qc2 {[%clk 0:00:28.9]} 27... Ra1 {[%clk
0:00:58.9]} 28. Qb2 {[%clk 0:00:29.5]} 28... Bf6 {[%clk 0:01:00]} 29. Qxa1
{[%clk 0:00:28.2]} 29... Bxa1 {[%clk 0:01:00.8]} 30. Kxf1 {[%clk 0:00:29.1]}
30... Rd8 {[%clk 0:01:01.2]} 0-1

[Event "*** Titled Tuesday 3|2 Blitz"]
[Site "Chess.com"]
[Date "2016.06.07"]
[Round "4"]
[White "Yaacovn"]
[Black "Fandorine"]
[Result "0-1"]
[WhiteElo "2615"]
[BlackElo "2617"]
[TimeControl "180+2"]
[EndTime "17:45:37 PDT"]
[Termination "Fandorine won by resignation"]

1. d4 {[%clk 0:03:01.9]} 1... Nf6 {[%clk 0:03:00.8]} 2. Nf3 {[%clk 0:02:58.3]}
2... e6 {[%clk 0:03:01.6]} 3. c4 {[%clk 0:02:59.3]} 3... b6 {[%clk 0:03:03]} 4.
g3 {[%clk 0:03:00.6]} 4... Bb7 {[%clk 0:03:04.2]} 5. Bg2 {[%clk 0:03:02]} 5...
Be7 {[%clk 0:03:05.9]} 6. O-O {[%clk 0:03:02.9]} 6... O-O {[%clk 0:03:07.6]} 7.
Nc3 {[%clk 0:03:03.9]} 7... Ne4 {[%clk 0:03:09]} 8. Bd2 {[%clk 0:03:04.9]} 8...
Bf6 {[%clk 0:03:10.4]} 9. Qc2 {[%clk 0:03:04.9]} 9... Nxd2 {[%clk 0:03:10.7]}
10. Qxd2 {[%clk 0:03:06.1]} 10... d6 {[%clk 0:03:11.9]} 11. Rad1 {[%clk
0:03:06.8]} 11... Nd7 {[%clk 0:03:12.4]} 12. Qc2 {[%clk 0:03:08.2]} 12... g6
{[%clk 0:03:12.6]} 13. Rfe1 {[%clk 0:03:09.3]} 13... Bg7 {[%clk 0:03:13.9]} 14.
e3 {[%clk 0:03:09.7]} 14... a6 {[%clk 0:03:14.3]} 15. Nh4 {[%clk 0:03:09.5]}
15... Bxg2 {[%clk 0:03:12.5]} 16. Nxg2 {[%clk 0:03:11.4]} 16... Nf6 {[%clk
0:03:10.7]} 17. Qe2 {[%clk 0:03:11.5]} 17... Qe7 {[%clk 0:03:11.4]} 18. Nf4
{[%clk 0:03:12.3]} 18... c5 {[%clk 0:03:12]} 19. Qf3 {[%clk 0:03:11.2]} 19...
Rac8 {[%clk 0:03:10.4]} 20. b3 {[%clk 0:02:59.3]} 20... Rfd8 {[%clk 0:03:04.6]}
21. Kg2 {[%clk 0:02:59.3]} 21... Rb8 {[%clk 0:02:46.9]} 22. Qe2 {[%clk
0:02:46.5]} 22... Qb7+ {[%clk 0:02:45.8]} 23. Qf3 {[%clk 0:02:42.1]} 23... Qc7
{[%clk 0:02:24.5]} 24. Rc1 {[%clk 0:02:31]} 24... b5 {[%clk 0:02:19.8]} 25. cxb5
{[%clk 0:02:31.3]} 25... axb5 {[%clk 0:02:21.7]} 26. dxc5 {[%clk 0:02:32]} 26...
dxc5 {[%clk 0:02:20]} 27. Red1 {[%clk 0:02:32.8]} 27... Nd7 {[%clk 0:02:11]} 28.
Qe2 {[%clk 0:02:21.1]} 28... c4 {[%clk 0:01:56.8]} 29. bxc4 {[%clk 0:02:18.8]}
29... bxc4 {[%clk 0:01:58.7]} 30. h4 {[%clk 0:02:16.3]} 30... Qc6+ {[%clk
0:01:43.5]} 31. Qf3 {[%clk 0:02:11.1]} 31... Qxf3+ {[%clk 0:01:41.5]} 32. Kxf3
{[%clk 0:02:13]} 32... Bxc3 {[%clk 0:01:42.7]} 33. Rxc3 {[%clk 0:02:12.6]} 33...
Ne5+ {[%clk 0:01:44]} 34. Ke4 {[%clk 0:02:03]} 34... Rxd1 {[%clk 0:01:44.4]} 35.
Kxe5 {[%clk 0:02:04.3]} 35... Rb5+ {[%clk 0:01:30.9]} 36. Kf6 {[%clk 0:02:02.3]}
36... e5 {[%clk 0:01:13.7]} 37. Nh3 {[%clk 0:01:58.3]} 37... Rd6+ {[%clk
0:01:11.3]} 38. Ke7 {[%clk 0:01:56.3]} 38... Re6+ {[%clk 0:01:11.7]} 39. Kd7
{[%clk 0:01:57.2]} 39... Rd5+ {[%clk 0:01:06.7]} 40. Kc7 {[%clk 0:01:56.3]}
40... Rc5+ {[%clk 0:01:07.9]} 41. Kd7 {[%clk 0:01:55.6]} 41... h6 {[%clk
0:01:09.2]} 42. Ng1 {[%clk 0:01:47.3]} 42... Ra6 {[%clk 0:01:09.4]} 43. a3
{[%clk 0:01:45.4]} 43... Rb6 {[%clk 0:01:06.9]} 44. h5 {[%clk 0:01:36.7]} 44...
Rb3 {[%clk 0:00:59.9]} 45. Ne2 {[%clk 0:01:33.8]} 45... Rd5+ {[%clk 0:01:00.2]}
46. Kc6 {[%clk 0:01:28.4]} 46... Rxc3 {[%clk 0:01:01]} 47. Nxc3 {[%clk
0:01:30.3]} 47... Rd3 {[%clk 0:01:02.3]} 48. Ne2 {[%clk 0:01:27.7]} 48... c3
{[%clk 0:01:03.7]} 49. Kc5 {[%clk 0:01:26.9]} 49... c2 {[%clk 0:01:03.6]} 50. a4
{[%clk 0:01:27.3]} 50... Rd2 {[%clk 0:01:03.6]} 51. Nc1 {[%clk 0:01:28.4]} 51...
Rd1 {[%clk 0:01:04.8]} 52. Nb3 {[%clk 0:01:29.1]} 52... Rb1 {[%clk 0:01:06.1]}
0-1

[Event "*** Titled Tuesday 3|2 Blitz"]
[Site "Chess.com"]
[Date "2016.06.07"]
[Round "4"]
[White "hangemhigh"]
[Black "kikydu96"]
[Result "1-0"]
[WhiteElo "2228"]
[BlackElo "2380"]
[TimeControl "180+2"]
[EndTime "17:45:48 PDT"]
[Termination "hangemhigh won by resignation"]

1. d4 {[%clk 0:02:58.8]} 1... d5 {[%clk 0:02:58.9]} 2. Bf4 {[%clk 0:02:56.9]}
2... Nf6 {[%clk 0:02:55.7]} 3. e3 {[%clk 0:02:57.2]} 3... c6 {[%clk 0:02:55.3]}
4. c4 {[%clk 0:02:57.5]} 4... Bf5 {[%clk 0:02:54.4]} 5. Nc3 {[%clk 0:02:56.5]}
5... e6 {[%clk 0:02:55.2]} 6. Qb3 {[%clk 0:02:55.3]} 6... Qb6 {[%clk 0:02:53]}
7. c5 {[%clk 0:02:55.8]} 7... Qxb3 {[%clk 0:02:52.7]} 8. axb3 {[%clk 0:02:57.7]}
8... Nbd7 {[%clk 0:02:53.2]} 9. b4 {[%clk 0:02:57.5]} 9... Nh5 {[%clk
0:02:48.3]} 10. Bg5 {[%clk 0:02:49]} 10... h6 {[%clk 0:02:47.4]} 11. Bh4 {[%clk
0:02:49.2]} 11... g5 {[%clk 0:02:48.2]} 12. Be2 {[%clk 0:02:48.5]} 12... gxh4
{[%clk 0:02:38.9]} 13. Bxh5 {[%clk 0:02:45.3]} 13... Rg8 {[%clk 0:02:40.2]} 14.
Kf1 {[%clk 0:02:34.5]} 14... e5 {[%clk 0:02:37.9]} 15. h3 {[%clk 0:02:12.3]}
15... Bg7 {[%clk 0:02:37.4]} 16. Nf3 {[%clk 0:02:11.8]} 16... exd4 {[%clk
0:02:34.8]} 17. exd4 {[%clk 0:02:10.3]} 17... Nf6 {[%clk 0:02:36.1]} 18. Nxh4
{[%clk 0:02:07.4]} 18... Bh7 {[%clk 0:02:23]} 19. Bg4 {[%clk 0:01:51.5]} 19...
Nxg4 {[%clk 0:02:22.5]} 20. hxg4 {[%clk 0:01:52]} 20... Bxd4 {[%clk 0:02:24]}
21. Re1+ {[%clk 0:01:50.1]} 21... Kd7 {[%clk 0:02:23.8]} 22. Nf5 {[%clk
0:01:49.1]} 22... Rxg4 {[%clk 0:02:15]} 23. Nxd4 {[%clk 0:01:31]} 23... Rxd4
{[%clk 0:02:14.5]} 24. Rxh6 {[%clk 0:01:31.5]} 24... Bd3+ {[%clk 0:02:14.6]} 25.
Kg1 {[%clk 0:01:31.9]} 25... Rxb4 {[%clk 0:02:15.6]} 26. Rd6+ {[%clk 0:01:31.9]}
26... Kc7 {[%clk 0:02:04.6]} 27. Re7+ {[%clk 0:01:31.9]} 27... Kc8 {[%clk
0:02:05.5]} 28. Re8+ {[%clk 0:01:32.5]} 28... Kc7 {[%clk 0:02:06.7]} 29. Rxa8
{[%clk 0:01:33.6]} 29... Rxb2 {[%clk 0:02:07.8]} 30. Rdd8 {[%clk 0:01:33]} 30...
Bf5 {[%clk 0:02:03.6]} 31. Rf8 {[%clk 0:01:28.1]} 31... Be6 {[%clk 0:02:03.9]}
32. f4 {[%clk 0:01:13.3]} 32... d4 {[%clk 0:02:01.7]} 33. f5 {[%clk 0:01:09.9]}
33... Bd7 {[%clk 0:01:47.3]} 34. Ne4 {[%clk 0:01:03.9]} 34... Re2 {[%clk
0:01:44.8]} 35. Nf6 {[%clk 0:01:03.2]} 35... d3 {[%clk 0:01:02.1]} 36. Rxf7
{[%clk 0:00:56.8]} 1-0

[Event "*** Titled Tuesday 3|2 Blitz"]
[Site "Chess.com"]
[Date "2016.06.07"]
[Round "4"]
[White "1stSecond"]
[Black "ShimanovAlex"]
[Result "0-1"]
[WhiteElo "2602"]
[BlackElo "2654"]
[TimeControl "180+2"]
[EndTime "17:46:20 PDT"]
[Termination "ShimanovAlex won by resignation"]

1. Nf3 {[%clk 0:03:01.9]} 1... Nf6 {[%clk 0:02:59.8]} 2. c4 {[%clk 0:03:03.4]}
2... c6 {[%clk 0:02:59.7]} 3. Nc3 {[%clk 0:03:05]} 3... d5 {[%clk 0:03:00.6]} 4.
d4 {[%clk 0:03:06.7]} 4... a6 {[%clk 0:03:01.8]} 5. c5 {[%clk 0:03:07]} 5... Bf5
{[%clk 0:03:02.2]} 6. Bf4 {[%clk 0:03:08.6]} 6... Nbd7 {[%clk 0:03:02.8]} 7. e3
{[%clk 0:03:10.2]} 7... e6 {[%clk 0:03:03.5]} 8. Bd3 {[%clk 0:03:11.3]} 8... Bg4
{[%clk 0:03:00.8]} 9. Qb3 {[%clk 0:03:05.5]} 9... Bxf3 {[%clk 0:02:59.1]} 10.
gxf3 {[%clk 0:03:06.5]} 10... Qc8 {[%clk 0:03:00.2]} 11. h4 {[%clk 0:03:05.3]}
11... g6 {[%clk 0:03:00.1]} 12. O-O-O {[%clk 0:03:03.3]} 12... Be7 {[%clk
0:03:00.2]} 13. Rdg1 {[%clk 0:02:58.9]} 13... Nh5 {[%clk 0:02:59.9]} 14. Bh6
{[%clk 0:02:56.9]} 14... Qc7 {[%clk 0:02:56.6]} 15. f4 {[%clk 0:02:53.3]} 15...
b6 {[%clk 0:02:40.8]} 16. cxb6 {[%clk 0:02:52.7]} 16... Nxb6 {[%clk 0:02:42.7]}
17. Kb1 {[%clk 0:02:53.1]} 17... Rb8 {[%clk 0:02:35.5]} 18. Qc2 {[%clk
0:02:48.2]} 18... f5 {[%clk 0:02:27.2]} 19. Na4 {[%clk 0:02:35.6]} 19... Nxa4
{[%clk 0:02:24.9]} 20. Qxa4 {[%clk 0:02:37.5]} 20... Kf7 {[%clk 0:02:25.2]} 21.
Rc1 {[%clk 0:02:37.1]} 21... Rb6 {[%clk 0:02:25.9]} 22. Bg5 {[%clk 0:02:33.6]}
22... Bd6 {[%clk 0:02:26.2]} 23. Bh6 {[%clk 0:02:22.9]} 23... Rhb8 {[%clk
0:02:26.9]} 24. Rc2 {[%clk 0:02:18.5]} 24... a5 {[%clk 0:02:20.5]} 25. b3 {[%clk
0:02:13.4]} 25... Nf6 {[%clk 0:02:15.7]} 26. Bg5 {[%clk 0:01:45.1]} 26... Nd7
{[%clk 0:01:45.9]} 27. h5 {[%clk 0:01:44.6]} 27... Qb7 {[%clk 0:01:24.7]} 28.
hxg6+ {[%clk 0:01:43.4]} 28... hxg6 {[%clk 0:01:26.6]} 29. f3 {[%clk 0:01:41.4]}
29... Nf8 {[%clk 0:01:21.1]} 30. e4 {[%clk 0:01:21.1]} 30... Rb4 {[%clk
0:01:11.4]} 31. Qxc6 {[%clk 0:01:20.4]} 31... Rxb3+ {[%clk 0:01:05.1]} 32. axb3
{[%clk 0:00:32.2]} 32... Qxb3+ {[%clk 0:01:07]} 33. Kc1 {[%clk 0:00:33.7]} 33...
Qxd3 {[%clk 0:00:58.7]} 34. Rh7+ {[%clk 0:00:21.2]} 34... Nxh7 {[%clk
0:00:56.1]} 35. Qd7+ {[%clk 0:00:22.6]} 35... Kg8 {[%clk 0:00:54.7]} 36. Qxe6+
{[%clk 0:00:23.8]} 36... Kg7 {[%clk 0:00:51.7]} 37. Qd7+ {[%clk 0:00:24.4]}
37... Kh8 {[%clk 0:00:52]} 38. Rc8+ {[%clk 0:00:12.9]} 38... Rxc8+ {[%clk
0:00:51.1]} 39. Qxc8+ {[%clk 0:00:14.8]} 39... Nf8 {[%clk 0:00:50]} 40. Bf6+
{[%clk 0:00:15.1]} 40... Kg8 {[%clk 0:00:50.8]} 41. Qb7 {[%clk 0:00:15.1]} 41...
Ba3+ {[%clk 0:00:50.9]} 0-1

[Event "*** Titled Tuesday 3|2 Blitz"]
[Site "Chess.com"]
[Date "2016.06.07"]
[Round "4"]
[White "Ar4uha"]
[Black "bugsbunny444"]
[Result "0-1"]
[WhiteElo "2339"]
[BlackElo "2367"]
[TimeControl "180+2"]
[EndTime "17:46:23 PDT"]
[Termination "bugsbunny444 won by checkmate"]

1. e4 {[%clk 0:02:52]} 1... e6 {[%clk 0:03:00.6]} 2. c4 {[%clk 0:02:50.6]} 2...
d5 {[%clk 0:03:00.9]} 3. exd5 {[%clk 0:02:52.5]} 3... exd5 {[%clk 0:03:02.7]} 4.
cxd5 {[%clk 0:02:54.4]} 4... Nf6 {[%clk 0:03:04.2]} 5. Bb5+ {[%clk 0:02:55.3]}
5... Nbd7 {[%clk 0:03:04.3]} 6. Nc3 {[%clk 0:02:56.1]} 6... Be7 {[%clk
0:03:05.9]} 7. d4 {[%clk 0:02:56.8]} 7... O-O {[%clk 0:03:07.4]} 8. Nf3 {[%clk
0:02:58.3]} 8... Nb6 {[%clk 0:03:08]} 9. O-O {[%clk 0:02:59.2]} 9... Nbxd5
{[%clk 0:03:09.2]} 10. Re1 {[%clk 0:03:00.6]} 10... c6 {[%clk 0:03:10.6]} 11.
Bd3 {[%clk 0:03:01.9]} 11... Re8 {[%clk 0:03:10.9]} 12. Ne5 {[%clk 0:03:02.4]}
12... Be6 {[%clk 0:03:12]} 13. Bd2 {[%clk 0:02:57.7]} 13... Nb4 {[%clk
0:03:10.3]} 14. Be3 {[%clk 0:02:51.7]} 14... Nxd3 {[%clk 0:03:10.5]} 15. Qxd3
{[%clk 0:02:53.6]} 15... Nd5 {[%clk 0:03:09.1]} 16. Ne4 {[%clk 0:02:54.5]} 16...
Qb6 {[%clk 0:02:57.9]} 17. b3 {[%clk 0:02:51.1]} 17... Rad8 {[%clk 0:02:44.4]}
18. Rad1 {[%clk 0:02:49.5]} 18... Bb4 {[%clk 0:02:39.3]} 19. Rf1 {[%clk
0:02:44.3]} 19... Bf5 {[%clk 0:02:18.2]} 20. g4 {[%clk 0:02:16]} 20... Bxe4
{[%clk 0:02:18.2]} 21. Qxe4 {[%clk 0:02:17.9]} 21... f6 {[%clk 0:02:10.2]} 22.
Rd3 {[%clk 0:01:57.2]} 22... Bd6 {[%clk 0:01:57.8]} 23. f4 {[%clk 0:01:36.1]}
23... fxe5 {[%clk 0:01:33.3]} 24. fxe5 {[%clk 0:01:37]} 24... Be7 {[%clk
0:01:07.9]} 25. Bc1 {[%clk 0:01:31.8]} 25... Rf8 {[%clk 0:01:00.8]} 26. Rf5
{[%clk 0:01:31.1]} 26... Nb4 {[%clk 0:00:55.2]} 27. Rd1 {[%clk 0:01:30.2]} 27...
Qb5 {[%clk 0:00:31.6]} 28. Bb2 {[%clk 0:01:23.7]} 28... Qd5 {[%clk 0:00:31.5]}
29. Qb1 {[%clk 0:01:24.8]} 29... c5 {[%clk 0:00:22.1]} 30. Rc1 {[%clk
0:01:06.9]} 30... cxd4 {[%clk 0:00:20.9]} 31. Rc7 {[%clk 0:01:08]} 31... Nc6
{[%clk 0:00:21.7]} 32. Qd3 {[%clk 0:01:01.4]} 32... Rxf5 {[%clk 0:00:16]} 33.
Qxf5 {[%clk 0:01:00.3]} 33... d3 {[%clk 0:00:15]} 34. e6 {[%clk 0:00:55]} 34...
Qxf5 {[%clk 0:00:14.6]} 35. gxf5 {[%clk 0:00:56.9]} 35... d2 {[%clk 0:00:16]}
36. Kf2 {[%clk 0:00:58.4]} 36... d1=Q {[%clk 0:00:17.1]} 37. f6 {[%clk
0:01:00.2]} 37... Qd2+ {[%clk 0:00:14.9]} 38. Kg3 {[%clk 0:01:02.1]} 38... gxf6
{[%clk 0:00:14.5]} 39. Kg4 {[%clk 0:01:04]} 39... Qxb2 {[%clk 0:00:15.1]} 40.
Kf5 {[%clk 0:01:05.2]} 40... Qe5+ {[%clk 0:00:15.7]} 41. Kg4 {[%clk 0:01:06.5]}
41... Rd4+ {[%clk 0:00:16.5]} 42. Kf3 {[%clk 0:01:07.4]} 42... Qxc7 {[%clk
0:00:17.3]} 43. Ke3 {[%clk 0:01:09.3]} 43... Qe5+ {[%clk 0:00:18.1]} 44. Kf3
{[%clk 0:01:11.2]} 44... Qe4+ {[%clk 0:00:19.3]} 45. Kf2 {[%clk 0:01:12.7]}
45... Rd3 {[%clk 0:00:18.8]} 46. Kf1 {[%clk 0:01:13.7]} 46... Qf3+ {[%clk
0:00:19.1]} 47. Ke1 {[%clk 0:01:15]} 47... Rd1# {[%clk 0:00:20.2]} 0-1

[Event "*** Titled Tuesday 3|2 Blitz"]
[Site "Chess.com"]
[Date "2016.06.07"]
[Round "4"]
[White "hermionegrangermagic"]
[Black "Silent_Terror"]
[Result "0-1"]
[WhiteElo "2283"]
[BlackElo "2500"]
[TimeControl "180+2"]
[EndTime "17:46:37 PDT"]
[Termination "Silent_Terror won by resignation"]

1. Nf3 {[%clk 0:03:01.9]} 1... e6 {[%clk 0:02:59.6]} 2. d4 {[%clk 0:02:56.3]}
2... Nf6 {[%clk 0:03:00.6]} 3. c4 {[%clk 0:02:54.8]} 3... b6 {[%clk 0:03:00.8]}
4. g3 {[%clk 0:02:55.2]} 4... Bb7 {[%clk 0:03:02]} 5. Bg2 {[%clk 0:02:56.3]}
5... c5 {[%clk 0:03:03.6]} 6. O-O {[%clk 0:02:54]} 6... cxd4 {[%clk 0:03:04.4]}
7. Nxd4 {[%clk 0:02:54.6]} 7... Bxg2 {[%clk 0:03:05.2]} 8. Kxg2 {[%clk
0:02:56.5]} 8... Qc7 {[%clk 0:03:06.8]} 9. Qd3 {[%clk 0:02:53.8]} 9... Qb7+
{[%clk 0:02:59.2]} 10. Kg1 {[%clk 0:02:54.1]} 10... Be7 {[%clk 0:02:58.9]} 11.
Nc3 {[%clk 0:02:52.9]} 11... a6 {[%clk 0:02:59.5]} 12. e4 {[%clk 0:02:53.2]}
12... d6 {[%clk 0:03:00.4]} 13. f4 {[%clk 0:02:33.3]} 13... Nbd7 {[%clk
0:03:01]} 14. Re1 {[%clk 0:02:19.4]} 14... O-O {[%clk 0:02:52.2]} 15. a3 {[%clk
0:02:18]} 15... Rac8 {[%clk 0:02:51.9]} 16. Nc2 {[%clk 0:02:14.4]} 16... Nc5
{[%clk 0:02:46.6]} 17. Qe2 {[%clk 0:02:06.6]} 17... Rfe8 {[%clk 0:02:42]} 18.
Nd4 {[%clk 0:01:55.9]} 18... d5 {[%clk 0:02:25]} 19. cxd5 {[%clk 0:01:36.5]}
19... exd5 {[%clk 0:02:25.1]} 20. e5 {[%clk 0:01:35.2]} 20... Nfe4 {[%clk
0:02:24.2]} 21. Qg4 {[%clk 0:00:51.7]} 21... Nxc3 {[%clk 0:02:13.3]} 22. bxc3
{[%clk 0:00:53.6]} 22... Ne4 {[%clk 0:02:05.6]} 23. Nf5 {[%clk 0:00:47.9]} 23...
Bf8 {[%clk 0:02:06.3]} 24. Be3 {[%clk 0:00:42.3]} 24... g6 {[%clk 0:01:58]} 25.
Bd4 {[%clk 0:00:42.4]} 25... h5 {[%clk 0:01:54.9]} 26. Qh3 {[%clk 0:00:34.9]}
26... gxf5 {[%clk 0:01:43.6]} 27. Qxf5 {[%clk 0:00:35]} 27... Qc6 {[%clk
0:01:35]} 28. Qxh5 {[%clk 0:00:28.1]} 28... Qg6 {[%clk 0:01:35]} 29. Qf3 {[%clk
0:00:29]} 29... Bc5 {[%clk 0:01:26.2]} 30. f5 {[%clk 0:00:29]} 30... Qg5 {[%clk
0:01:25.1]} 31. Kg2 {[%clk 0:00:20.4]} 31... Bxd4 {[%clk 0:01:24.3]} 32. cxd4
{[%clk 0:00:21.2]} 32... Rc3 {[%clk 0:01:21.5]} 33. Qf1 {[%clk 0:00:17.7]} 33...
Rec8 {[%clk 0:01:09.3]} 34. Qf4 {[%clk 0:00:11.7]} 34... Qh5 {[%clk 0:01:01.3]}
35. Kg1 {[%clk 0:00:05]} 35... Rc2 {[%clk 0:00:57.6]} 36. h4 {[%clk 0:00:06.1]}
36... R8c3 {[%clk 0:00:54.2]} 37. Re3 {[%clk 0:00:03.4]} 37... Rxe3 {[%clk
0:00:49.2]} 38. Qxe3 {[%clk 0:00:05.3]} 38... Qg4 {[%clk 0:00:50]} 39. Rf1
{[%clk 0:00:04.3]} 39... Qh3 {[%clk 0:00:41.8]} 40. Rf2 {[%clk 0:00:03.6]} 40...
Rxf2 {[%clk 0:00:40.1]} 41. Qxf2 {[%clk 0:00:04.5]} 41... Nxf2 {[%clk
0:00:41.4]} 42. Kxf2 {[%clk 0:00:06.4]} 42... Qh2+ {[%clk 0:00:42.9]} 0-1